fUSD/lending_fUSD_20240826
["ID","MTS","AMOUNT","RATE_DAILY","PERIOD"]
[335969373,1724646647005,-2410.87,0.00010999,2]
[335969375,1724646647015,-2410.87,0.00010999,2]
[335969377,1724646647026,-2410.87,0.00010999,2]
[335969379,1724646647038,-2410.87,0.00010999,2]
[335969381,1724646647049,-2410.87,0.00010999,2]
[335969384,1724646647060,-2410.87,0.00010999,2]
[335969386,1724646647071,-2410.87,0.00010999,2]
[335969388,1724646647081,-2410.87,0.00010999,2]
[335969390,1724646647092,-2410.96710621,0.00010999,2]
[335969392,1724646647103,-151.0,0.00010999,2]
[335969395,1724646647113,-151.0,0.00010999,2]
[335969397,1724646647124,-151.0,0.00010999,2]
[335969399,1724646647135,-151.0,0.00010999,2]
[335969401,1724646647146,-151.0,0.00010999,2]
[335969402,1724646647157,-151.0,0.00010999,2]
[335969405,1724646647167,-151.0,0.00010999,2]
[335969407,1724646647178,-151.0,0.00010999,2]
[335969409,1724646647188,-151.0,0.00010999,2]
[335969411,1724646647200,-151.0,0.00010999,2]
[335969413,1724646647211,-152.315913,0.00010999,2]
[335969415,1724646647221,-500.0,0.00010999,2]
[335969417,1724646647232,-500.0,0.00010999,2]
[335969419,1724646647241,-500.0,0.00010999,2]
[335969421,1724646647250,-208.52614966,0.00010999,2]
[335969423,1724646647259,-151.0,0.00010999,2]
[335969441,1724646647441,-151.0,0.00010999,2]
[335969443,1724646647453,-151.0,0.00010999,2]
[335969445,1724646647463,-7230.49,0.00010999,2]
[335969447,1724646647472,-7230.49,0.00010999,2]
[335969449,1724646647482,-7230.49,0.00010999,2]
[335969451,1724646647492,-7230.49,0.00010999,2]
[335969453,1724646647502,-7230.49,0.00010999,2]
[335969455,1724646647512,-7230.49,0.00010999,2]
[335969457,1724646647521,-151.0,0.00010999,2]
[335969459,1724646647531,-7230.49,0.00010999,2]
[335969461,1724646647540,-151.0,0.00010999,2]
[335969463,1724646647550,-500.0,0.00010999,2]
[335969465,1724646647560,-7230.49,0.00010999,2]
[335969467,1724646647569,-643.48389163,0.00010999,2]
[335969469,1724646647579,-7230.49,0.00010999,2]
[335969471,1724646647588,-7230.49,0.00010999,2]
[335969473,1724646647598,-7230.71246649,0.00010999,2]
[335969475,1724646647609,-500.0,0.00010999,2]
[335969477,1724646647619,-500.0,0.00010999,2]
[335969479,1724646647628,-500.0,0.00010999,2]
[335969481,1724646647637,-500.0,0.00010999,2]
[335969483,1724646647647,-500.0,0.00010999,2]
[335969485,1724646647661,-436.42473671,0.00010999,2]
[335969487,1724646647671,-151.0,0.00010999,2]
[335969489,1724646647680,-4119.83,0.00010999,2]
[335969491,1724646647690,-4119.83,0.00010999,2]
[335969493,1724646647702,-4119.83,0.00010999,2]
[335969495,1724646647711,-4119.83,0.00010999,2]
[335969497,1724646647720,-4119.83,0.00010999,2]
[335969499,1724646647730,-4119.83,0.00010999,2]
[335969502,1724646647741,-4119.83,0.00010999,2]
[335969504,1724646647751,-4119.83,0.00010999,2]
[335969506,1724646647760,-4119.83,0.00010999,2]
[335969507,1724646647769,-4119.83,0.00010999,2]
[335969509,1724646647778,-4120.05730659,0.00010999,2]
[335969511,1724646647788,-13149.12,0.00010999,2]
[335969513,1724646647797,-13149.12,0.00010999,2]
[335969515,1724646647807,-13149.12,0.00010999,2]
[335969517,1724646647816,-13149.12,0.00010999,2]
[335969519,1724646647825,-13149.12,0.00010999,2]
[335969521,1724646647834,-13149.12,0.00010999,2]
[335969523,1724646647844,-13149.12,0.00010999,2]
[335969525,1724646647853,-13149.12,0.00010999,2]
[335969528,1724646647863,-13149.12,0.00010999,2]
[335969530,1724646647873,-13149.12,0.00010999,2]
[335969532,1724646647882,-13149.26389319,0.00010999,2]
[335969534,1724646647893,-1216.1294421,0.00010999,2]
[335969536,1724646647902,-6019.84,0.00010999,2]
[335969538,1724646647911,-6019.84,0.00010999,2]
[335969540,1724646647921,-6019.84,0.00010999,2]
[335969542,1724646647930,-6019.84,0.00010999,2]
[335969544,1724646647939,-6019.84,0.00010999,2]
[335969545,1724646647949,-6019.84,0.00010999,2]
[335969548,1724646647958,-6019.84,0.00010999,2]
[335969549,1724646647967,-6019.84,0.00010999,2]
[335969551,1724646647976,-6019.84,0.00010999,2]
[335969553,1724646647986,-6019.84,0.00010999,2]
[335969555,1724646647996,-6019.95451914,0.00010999,2]
[335969557,1724646648005,-151.384458,0.00010999,2]
[335969559,1724646648016,-1733.38,0.00010999,2]
[335969561,1724646648025,-1733.38,0.00010999,2]
[335969564,1724646648035,-1733.38,0.00010999,2]
[335969566,1724646648045,-1733.38,0.00010999,2]
[335969568,1724646648055,-1733.38,0.00010999,2]
[335969570,1724646648065,-1733.38,0.00010999,2]
[335969572,1724646648074,-1733.38,0.00010999,2]
[335969573,1724646648083,-1733.38,0.00010999,2]
[335969575,1724646648101,-1733.38,0.00010999,2]
[335969577,1724646648110,-1733.38,0.00010999,2]
[335969579,1724646648120,-1733.603772,0.00010999,2]
[335969582,1724646648129,-870.18,0.00010999,2]
[335969584,1724646648139,-870.18,0.00010999,2]
[335969585,1724646648149,-870.18,0.00010999,2]
[335969587,1724646648158,-151.0,0.00010999,2]
[335969589,1724646648168,-870.18,0.00010999,2]
[335969591,1724646648177,-151.0,0.00010999,2]
[335969593,1724646648187,-870.18,0.00010999,2]
[335969595,1724646648197,-870.18,0.00010999,2]
[335969597,1724646648207,-870.18,0.00010999,2]
[335969599,1724646648216,-870.18,0.00010999,2]
[335969601,1724646648225,-281.281582,0.00010999,2]
[335969604,1724646648235,-870.18,0.00010999,2]
[335969605,1724646648245,-870.18,0.00010999,2]
[335969608,1724646648254,-151.0,0.00010999,2]
[335969610,1724646648264,-870.18,0.00010999,2]
[335969611,1724646648273,-151.0,0.00010999,2]
[335969614,1724646648283,-870.18,0.00010999,2]
[335969616,1724646648292,-870.18,0.00010999,2]
[335969617,1724646648301,-151.0,0.00010999,2]
[335969619,1724646648310,-151.0,0.00010999,2]
[335969621,1724646648320,-870.31999999,0.00010999,2]
[335969623,1724646648330,-5872.971,0.00011,2]
[335969625,1724646648342,-291.094,0.00011,2]
[335969627,1724646648351,-13454.0,0.00011,2]
[335969629,1724646648360,-1678.116,0.00011,2]
[335969631,1724646648370,-3737.262,0.00011,2]
[335969633,1724646648380,-1210.713,0.00011,2]
[335969635,1724646648389,-813294.79114761,0.00011,2]
[335969637,1724646648398,-622856.54085023,0.00011,2]
[335969656,1724646648565,-1190625.79592961,0.00011,2]
[335969658,1724646648576,-34677.686,0.00011,2]
[335969661,1724646648594,-1553.4252,0.00011,2]
[335969667,1724646648645,-4355.31238879,0.00010998,2]
[335969669,1724646648661,-256.89893274,0.00010998,2]
[335969672,1724646648672,-3055.70023124,0.00010998,2]
[335969673,1724646648681,-6147.4193559,0.00011,2]
[335969676,1724646648693,-2098.83755617,0.00011,2]
[335969678,1724646648704,-533.1,0.00011,2]
[335969680,1724646648715,-179240.95075078,0.00011,2]
[335969682,1724646648727,-532.6953717,0.00011,2]
[335969684,1724646648738,-588.61493609,0.00011,2]
[335969687,1724646648754,-338.37333129,0.00011,2]
[335969689,1724646648765,-3048.32772882,0.00011,2]
[335969691,1724646648776,-865.43927189,0.00011,2]
[335969694,1724646648787,-670.7,0.00011,2]
[335969696,1724646648798,-2941.53435442,0.00011,2]
[335969698,1724646648809,-312.3160075,0.00011,2]
[335969700,1724646648820,-4832.22556236,0.00011,2]
[335969702,1724646648830,-9920.5,0.00011,2]
[335969705,1724646648841,-475.21517826,0.00011,2]
[335969707,1724646648852,-3200.6762738,0.00011,2]
[335969709,1724646648863,-83111.61462018,0.00011,2]
[335969711,1724646648875,-25549.94544281,0.00011,2]
[335969713,1724646648885,-1533.82291211,0.00011,2]
[335969727,1724646649005,-296.33106017,0.00011,2]
[335969729,1724646649020,-1610.53421101,0.00011,2]
[335969732,1724646649032,-92799.23822227,0.00011,2]
[335969734,1724646649043,-4010.853084,0.00011,2]
[335969737,1724646649059,-492.0,0.00011,2]
[335969739,1724646649070,-5852.56225702,0.00011,2]
[335969758,1724646649240,-3204.28859471,0.00010898,2]
[335969760,1724646649249,-828.44,0.00010959,2]
[335969762,1724646649259,-1524.64267773,0.00011,2]
[335969764,1724646649274,-530.95163184,0.00011,2]
[335969767,1724646649285,-297.95376087,0.00011,2]
[335969769,1724646649295,-293.30521316,0.00011,2]
[335969771,1724646649306,-1315.88210903,0.00011,2]
[335969773,1724646649317,-432.0,0.00011,2]
[335969775,1724646649327,-735.915,0.00011,2]
[335969777,1724646649340,-3724.3961077,0.00011,2]
[335969779,1724646649354,-332.81290213,0.00011,2]
[335969782,1724646649373,-2833.13889606,0.00011,2]
[335969784,1724646649384,-1310.89655929,0.00011,2]
[335969787,1724646649399,-17372.54439704,0.00011,2]
[335969798,1724646649502,-345.36063455,0.00010892,2]
[335969800,1724646649511,-537.0,0.00010998,2]
[335969802,1724646649520,-7224.53936539,0.00010998,2]
[335969805,1724646649539,-2289.94743924,0.00010998,2]
[335970315,1724646699649,600.0,8.22e-05,2]
[335970316,1724646700598,600.0,8.22e-05,2]
[335970317,1724646701279,600.0,9.59e-05,2]
[335970318,1724646702054,600.0,9.59e-05,2]
[335970319,1724646714085,1923.94,0.0001,2]
[335970320,1724646731606,5116.07,9.866e-05,2]
[335970321,1724646737143,454.14,8.219e-05,2]
[335970322,1724646761681,500.0,8.22e-05,2]
[335970324,1724646874601,155.09538551,9.963e-05,2]
[335970327,1724647008639,500.0,9.9e-05,3]
[335970329,1724647010748,1000.0,0.0001,3]
[335970333,1724647043864,229.91,9.838e-05,2]
[335970347,1724647174830,1000.0,9.827e-05,2]
[335970352,1724647249312,5901.40305106,0.00010009,2]
[335970356,1724647320337,1081.87927714,9.914e-05,2]
[335970357,1724647320360,1627.73072286,9.914e-05,2]
[335970360,1724647358080,431.43,8.219e-05,2]
[335970361,1724647363979,160.0,8.219e-05,2]
[335970373,1724647427654,2843.18598916,9.962e-05,2]
[335970374,1724647552523,155.0,0.00010009,2]
[335970382,1724647572738,179.59,9.849e-05,2]
[335970383,1724647583492,1050.0,0.0001,2]
[335970386,1724647627517,400.0,9.9e-05,3]
[335970387,1724647629664,800.0,0.0001,3]
[335970389,1724647660444,200.0,9.804e-05,2]
[335970416,1724647732457,1074.78314637,0.00010009,2]
[335970431,1724647797203,1256.81283107,0.00010009,2]
[335970432,1724647797284,3882.16223642,0.00010009,2]
[335970434,1724647803218,371.57373546,0.00010009,2]
[335970440,1724647830357,2248.47167659,0.00010009,2]
[335970450,1724647831366,-300.0,0.00010099,2]
[335970451,1724647831377,-298.78217594,0.000101,2]
[335970452,1724647831387,-3785.05583311,0.000101,2]
[335970454,1724647831400,-1214.94416689,0.000101,2]
[335970456,1724647831410,-1200.0,0.000101,3]
[335970457,1724647831420,-2058.15795757,0.000101,2]
[335970458,1724647831435,-454.22394535,0.000101,2]
[335970459,1724647831477,-2496.73375339,0.000101,2]
[335970460,1724647831489,-35510.28462386,0.000101,2]
[335970461,1724647831499,-1700.0,0.000102,3]
[335970462,1724647831508,-150.0,0.00010274,2]
[335970463,1724647831518,-150.0,0.00010299,2]
[335970464,1724647831526,-11503.0,0.000103,5]
[335970465,1724647831535,-2100.0,0.000103,3]
[335970466,1724647831545,-429.88,0.000103,2]
[335970467,1724647831554,-150.93,0.000103,2]
[335970468,1724647831563,-1126.59,0.000103,2]
[335970469,1724647831575,-212.7,0.000103,2]
[335970470,1724647831586,-531.66,0.000103,2]
[335970471,1724647831597,-150.0,0.000103,2]
[335970472,1724647831608,-531.66,0.000103,2]
[335970473,1724647831617,-150.0,0.000103,2]
[335970474,1724647831626,-426.95,0.000103,2]
[335970475,1724647831635,-1581.8,0.000104,2]
[335970476,1724647831645,-428.31,0.000104,2]
[335970477,1724647831655,-1063.14,0.000104,2]
[335970478,1724647831666,-347.4,0.000104,2]
[335970479,1724647831676,-300.0,0.000104,2]
[335970480,1724647831686,-300.0,0.000104,2]
[335970481,1724647831696,-150.0,0.000104,2]
[335970482,1724647831705,-531.57,0.000104,2]
[335970483,1724647831718,-300.0,0.000104,2]
[335970484,1724647831729,-300.0,0.000104,2]
[335970485,1724647831738,-791.05,0.000104,2]
[335970486,1724647831748,-957.53,0.000104,2]
[335970487,1724647831757,-712.54,0.000104,2]
[335970488,1724647831766,-400.0,0.000104,3]
[335970489,1724647831775,-431.43,0.00010467,2]
[335970490,1724647831785,-400.0,0.000105,3]
[335970491,1724647831794,-2360.55,0.000106,2]
[335970492,1724647831804,-853.58,0.000106,2]
[335970493,1724647831813,-400.0,0.000106,3]
[335970494,1724647831822,-2146.94259288,0.00010699,2]
[335970495,1724647831831,-893.31865468,0.00010699,2]
[335970496,1724647831841,-400.0,0.000107,3]
[335970497,1724647831850,-150.0,0.00010726,2]
[335970498,1724647831860,-150.0,0.00010727,2]
[335970499,1724647831870,-150.0,0.00010728,2]
[335970500,1724647831879,-150.0,0.00010728,2]
[335970501,1724647831888,-150.0,0.0001073,2]
[335970502,1724647831897,-150.0,0.00010736,2]
[335970503,1724647831907,-150.0,0.00010736,2]
[335970504,1724647831916,-150.0,0.00010738,2]
[335970505,1724647831925,-150.0,0.00010739,2]
[335970506,1724647831935,-150.0,0.00010739,2]
[335970507,1724647831945,-150.0,0.00010744,2]
[335970508,1724647831954,-150.0,0.00010744,2]
[335970509,1724647831963,-150.0,0.00010745,2]
[335970510,1724647831973,-150.0,0.00010747,2]
[335970511,1724647831983,-150.0,0.0001075,2]
[335970512,1724647831992,-150.0,0.00010753,2]
[335970513,1724647832007,-150.0,0.00010753,2]
[335970514,1724647832017,-150.0,0.00010755,2]
[335970515,1724647832026,-150.0,0.00010762,2]
[335970516,1724647832035,-150.0,0.00010764,2]
[335970517,1724647832046,-150.0,0.00010769,2]
[335970518,1724647832055,-150.0,0.00010771,2]
[335970519,1724647832064,-150.0,0.00010772,2]
[335970520,1724647832075,-150.0,0.00010775,2]
[335970521,1724647832087,-150.0,0.00010776,2]
[335970522,1724647832099,-150.0,0.00010776,2]
[335970523,1724647832108,-283.35952976,0.00010778,2]
[335970524,1724647832118,-150.0,0.00010779,2]
[335970525,1724647832127,-150.0,0.00010781,2]
[335970526,1724647832137,-150.0,0.00010793,2]
[335970527,1724647832146,-150.0,0.00010794,2]
[335970528,1724647832155,-150.0,0.00010795,2]
[335970529,1724647832165,-150.0,0.00010797,2]
[335970530,1724647832176,-557.99776162,0.00010799,2]
[335970531,1724647832185,-164.06179835,0.000108,2]
[335970532,1724647832194,-15033.5989,0.000108,2]
[335970533,1724647832205,-800.0,0.000108,3]
[335970534,1724647832215,-150.0,0.00010802,2]
[335970535,1724647832225,-150.0,0.00010806,2]
[335970536,1724647832234,-150.0,0.00010806,2]
[335970537,1724647832243,-150.0,0.00010807,2]
[335970538,1724647832255,-150.0,0.00010808,2]
[335970539,1724647832265,-150.0,0.00010808,2]
[335970540,1724647832274,-150.0,0.00010816,2]
[335970541,1724647832284,-150.0,0.00010821,2]
[335970542,1724647832295,-150.0,0.00010827,2]
[335970543,1724647832305,-150.0,0.00010837,2]
[335970544,1724647832315,-150.0,0.00010839,2]
[335970545,1724647832324,-150.0,0.00010843,2]
[335970546,1724647832334,-150.0,0.00010844,2]
[335970547,1724647832343,-150.0,0.00010845,2]
[335970548,1724647832352,-150.0,0.00010848,2]
[335970549,1724647832361,-150.0,0.0001085,2]
[335970550,1724647832370,-687.90215058,0.00010861,2]
[335970551,1724647832379,-150.0,0.00010861,2]
[335970552,1724647832388,-150.0,0.00010861,2]
[335970553,1724647832397,-650.5910874,0.00010862,2]
[335970554,1724647832406,-150.0,0.00010864,2]
[335970555,1724647832415,-150.0,0.00010866,2]
[335970556,1724647832424,-150.0,0.0001087,2]
[335970557,1724647832433,-150.0,0.00010875,2]
[335970558,1724647832442,-150.0,0.00010875,2]
[335970559,1724647832451,-150.0,0.00010877,2]
[335970560,1724647832460,-150.0,0.00010877,2]
[335970561,1724647832469,-150.0,0.00010879,2]
[335970562,1724647832479,-150.0,0.00010879,2]
[335970563,1724647832488,-205.84705767,0.00010888,2]
[335970564,1724647832498,-150.0,0.00010889,2]
[335970565,1724647832507,-1000.0,0.00010889,2]
[335970566,1724647832516,-2500.0,0.00010889,2]
[335970567,1724647832525,-1618.99706,0.0001089,2]
[335970568,1724647832535,-569.08083707,0.0001089,2]
[335970569,1724647832544,-28571.1356,0.0001089,2]
[335970570,1724647832553,-150.0,0.00010892,2]
[335970571,1724647832564,-150.0,0.00010893,2]
[335970572,1724647832573,-150.0,0.00010895,2]
[335970573,1724647832583,-345.36063455,0.00010895,2]
[335970574,1724647832592,-15050.2465,0.00010897,2]
[335970575,1724647832602,-825.9845,0.00010897,2]
[335970576,1724647832610,-1310.4205,0.00010897,2]
[335970577,1724647832619,-7500.0,0.00010897,2]
[335970578,1724647832629,-175.411,0.00010899,2]
[335970579,1724647832638,-150.0,0.00010899,2]
[335970580,1724647832647,-665.10418289,0.00010899,2]
[335970581,1724647832656,-665.10418286,0.00010899,2]
[335970582,1724647832666,-665.10418286,0.00010899,2]
[335970583,1724647832675,-665.10418286,0.00010899,2]
[335970584,1724647832684,-665.10418286,0.00010899,2]
[335970585,1724647832693,-665.10418286,0.00010899,2]
[335970586,1724647832702,-665.10418286,0.00010899,2]
[335970587,1724647832711,-665.10418286,0.00010899,2]
[335970588,1724647832720,-665.10418286,0.00010899,2]
[335970589,1724647832730,-818.326,0.000109,2]
[335970590,1724647832739,-665.10418286,0.000109,2]
[335970591,1724647832748,-345.36063455,0.000109,2]
[335970592,1724647832758,-150.0,0.00010902,2]
[335970593,1724647832768,-150.0,0.00010904,2]
[335970594,1724647832777,-150.0,0.00010909,2]
[335970595,1724647832787,-150.0,0.00010909,2]
[335970596,1724647832796,-150.0,0.00010912,2]
[335970597,1724647832805,-150.0,0.00010912,2]
[335970598,1724647832816,-150.0,0.00010912,2]
[335970599,1724647832825,-500.0,0.00010912,2]
[335970600,1724647832835,-150.0,0.00010914,2]
[335970601,1724647832844,-150.0,0.00010914,2]
[335970602,1724647832854,-150.0,0.00010919,2]
[335970603,1724647832863,-150.0,0.0001092,2]
[335970604,1724647832872,-150.0,0.00010926,2]
[335970605,1724647832881,-150.0,0.00010932,2]
[335970606,1724647832890,-150.0,0.00010933,2]
[335970607,1724647832900,-150.0,0.00010934,2]
[335970608,1724647832910,-150.0,0.00010938,2]
[335970609,1724647832920,-150.0,0.00010938,2]
[335970610,1724647832929,-150.0,0.00010939,2]
[335970611,1724647832938,-150.0,0.00010939,2]
[335970612,1724647832947,-150.0,0.00010942,2]
[335970613,1724647832956,-150.0,0.00010947,2]
[335970614,1724647832965,-150.0,0.00010948,2]
[335970615,1724647832974,-150.0,0.00010949,2]
[335970616,1724647832983,-150.0,0.00010949,2]
[335970617,1724647832992,-153.34,0.00010959,2]
[335970618,1724647833004,-150.0,0.00010959,2]
[335970619,1724647833013,-521.66,0.00010959,2]
[335970620,1724647833022,-664.24,0.00010959,2]
[335970621,1724647833031,-553.53,0.00010959,2]
[335970622,1724647833040,-461.28,0.00010959,2]
[335970623,1724647833049,-384.4,0.00010959,2]
[335970624,1724647833058,-320.33,0.00010959,2]
[335970625,1724647833068,-266.94,0.00010959,2]
[335970626,1724647833077,-2000.0,0.00010959,2]
[335970627,1724647833086,-222.45,0.00010959,2]
[335970628,1724647833095,-185.38,0.00010959,2]
[335970629,1724647833104,-154.48,0.00010959,2]
[335970630,1724647833113,-250.0,0.00010959,2]
[335970631,1724647833123,-772.44,0.00010959,2]
[335970632,1724647833132,-500.0,0.0001096,2]
[335970633,1724647833141,-600.0,0.0001096,2]
[335970634,1724647833150,-600.0,0.0001096,2]
[335970635,1724647833159,-150.0,0.00010963,2]
[335970636,1724647833169,-150.0,0.0001097,2]
[335970637,1724647833178,-200.0,0.00010973,2]
[335970638,1724647833187,-150.0,0.00010973,2]
[335970639,1724647833197,-150.0,0.00010979,2]
[335970640,1724647833206,-150.0,0.0001098,2]
[335970641,1724647833215,-150.0,0.0001098,2]
[335970642,1724647833224,-150.0,0.00010983,2]
[335970643,1724647833234,-150.0,0.00010985,2]
[335970644,1724647833243,-557.0,0.00010988,2]
[335970645,1724647833253,-500.0,0.00010988,2]
[335970646,1724647833262,-500.0,0.00010988,2]
[335970647,1724647833272,-500.0,0.00010988,2]
[335970648,1724647833281,-1858.84,0.00010988,2]
[335970649,1724647833291,-1335.12,0.00010988,2]
[335970650,1724647833300,-500.0,0.00010988,2]
[335970651,1724647833309,-500.0,0.00010988,2]
[335970652,1724647833319,-500.0,0.00010988,2]
[335970653,1724647833328,-500.0,0.00010988,2]
[335970654,1724647833338,-331.47309724,0.00010988,2]
[335970655,1724647833347,-500.0,0.00010988,2]
[335970656,1724647833357,-1210.76,0.00010988,2]
[335970657,1724647833366,-500.0,0.00010988,2]
[335970658,1724647833376,-500.0,0.00010988,2]
[335970659,1724647833386,-617.57,0.00010988,2]
[335970660,1724647833396,-523.0,0.00010988,2]
[335970661,1724647833405,-500.0,0.00010988,2]
[335970662,1724647833415,-500.0,0.00010988,2]
[335970663,1724647833425,-500.0,0.00010988,2]
[335970664,1724647833436,-506.07,0.00010988,2]
[335970665,1724647833446,-540.85940338,0.00010988,2]
[335970666,1724647833456,-500.0,0.00010988,2]
[335970667,1724647833465,-500.0,0.00010988,2]
[335970668,1724647833477,-500.0,0.00010988,2]
[335970669,1724647833486,-500.0,0.00010988,2]
[335970670,1724647833497,-3308.93,0.00010988,2]
[335970671,1724647833507,-500.0,0.00010988,2]
[335970672,1724647833518,-500.0,0.00010988,2]
[335970673,1724647833528,-500.0,0.00010988,2]
[335970674,1724647833537,-500.0,0.00010989,2]
[335970675,1724647833547,-500.0,0.00010989,2]
[335970676,1724647833556,-500.0,0.00010989,2]
[335970677,1724647833566,-500.0,0.00010989,2]
[335970678,1724647833576,-500.0,0.00010989,2]
[335970679,1724647833585,-500.0,0.00010989,2]
[335970680,1724647833595,-500.0,0.00010989,2]
[335970681,1724647833604,-500.0,0.00010989,2]
[335970682,1724647833614,-590.63,0.00010989,2]
[335970683,1724647833624,-590.63,0.00010989,2]
[335970684,1724647833634,-590.63,0.00010989,2]
[335970685,1724647833645,-590.63,0.00010989,2]
[335970686,1724647833654,-590.63,0.00010989,2]
[335970687,1724647833664,-590.63,0.00010989,2]
[335970688,1724647833674,-590.63,0.00010989,2]
[335970689,1724647833685,-590.63,0.00010989,2]
[335970690,1724647833695,-1223.86,0.00010989,2]
[335970691,1724647833705,-1223.86,0.00010989,2]
[335970692,1724647833715,-1223.86,0.00010989,2]
[335970693,1724647833726,-1223.86,0.00010989,2]
[335970694,1724647833735,-1223.86,0.00010989,2]
[335970695,1724647833746,-1223.86,0.00010989,2]
[335970696,1724647833756,-1223.86,0.00010989,2]
[335970697,1724647833766,-1223.86,0.00010989,2]
[335970698,1724647833776,-150.0,0.00010989,2]
[335970699,1724647833786,-500.0,0.00010989,2]
[335970700,1724647833796,-500.0,0.00010989,2]
[335970701,1724647833805,-500.0,0.00010989,2]
[335970702,1724647833816,-500.0,0.00010989,2]
[335970703,1724647833825,-500.0,0.00010989,2]
[335970704,1724647833835,-500.0,0.00010989,2]
[335970705,1724647833844,-500.0,0.00010989,2]
[335970706,1724647833854,-500.0,0.00010989,2]
[335970707,1724647833864,-500.0,0.00010989,2]
[335970708,1724647833874,-500.0,0.00010989,2]
[335970709,1724647833883,-500.0,0.00010989,2]
[335970710,1724647833893,-500.0,0.00010989,2]
[335970711,1724647833902,-500.0,0.00010989,2]
[335970712,1724647833912,-500.0,0.00010989,2]
[335970713,1724647833921,-500.0,0.00010989,2]
[335970714,1724647833931,-500.0,0.00010989,2]
[335970715,1724647833940,-500.0,0.00010989,2]
[335970716,1724647833949,-500.0,0.00010989,2]
[335970717,1724647833959,-500.0,0.00010989,2]
[335970718,1724647833968,-500.0,0.00010989,2]
[335970719,1724647833980,-500.0,0.00010989,2]
[335970720,1724647833990,-500.0,0.00010989,2]
[335970721,1724647834003,-500.0,0.00010989,2]
[335970722,1724647834012,-500.0,0.00010989,2]
[335970723,1724647834021,-500.0,0.00010989,2]
[335970724,1724647834031,-500.0,0.00010989,2]
[335970725,1724647834041,-500.0,0.00010989,2]
[335970726,1724647834051,-500.0,0.00010989,2]
[335970727,1724647834060,-500.0,0.00010989,2]
[335970728,1724647834218,-500.0,0.00010989,2]
[335970729,1724647834230,-500.0,0.00010989,2]
[335970730,1724647834241,-500.0,0.00010989,2]
[335970731,1724647834250,-1171.49,0.00010989,2]
[335970732,1724647834259,-1171.49,0.00010989,2]
[335970733,1724647834268,-1171.49,0.00010989,2]
[335970734,1724647834277,-1171.49,0.00010989,2]
[335970735,1724647834287,-1171.49,0.00010989,2]
[335970736,1724647834296,-1171.49,0.00010989,2]
[335970737,1724647834306,-1171.49,0.00010989,2]
[335970738,1724647834315,-1171.49,0.00010989,2]
[335970739,1724647834325,-1692.32,0.00010989,2]
[335970740,1724647834334,-1692.32,0.00010989,2]
[335970741,1724647834343,-1692.32,0.00010989,2]
[335970742,1724647834352,-1692.32,0.00010989,2]
[335970743,1724647834362,-1692.32,0.00010989,2]
[335970744,1724647834371,-1692.32,0.00010989,2]
[335970745,1724647834380,-1692.32,0.00010989,2]
[335970746,1724647834389,-1692.32,0.00010989,2]
[335970747,1724647834398,-961.81,0.00010989,2]
[335970748,1724647834409,-961.81,0.00010989,2]